bitfinex/quotes_SOLUSD_20250217
["timestamp","ask_amount","ask_price","bid_price","bid_amount"]
[1739792246176,32.5491409,184.02,183.96,6.6324]
[1739792246376,10.43926205,184.01,183.96,6.6324]
[1739792246580,5.4347,184.0,183.96,6.6324]
[1739792247988,15.27336319,184.01,183.96,16.82068205]
[1739792248159,15.27336319,184.01,183.97,10.18828205]
[1739792248481,15.27336319,184.01,183.98,10.18828205]
[1739792249659,20.0,184.0,183.98,10.18828205]
[1739792249989,5.4336,184.04,183.99,10.18828205]
[1739792250478,5.4336,184.04,184.0,10.18828205]
[1739792251985,1.0,184.02,183.96,81.5]
[1739792252233,1.0,184.03,184.01,10.18828205]
[1739792252397,2.0,184.03,184.01,10.18828205]
[1739792253293,1.0,184.02,184.01,10.18828205]
[1739792253892,1.0,184.03,184.01,10.18828205]
[1739792254091,1.0,184.03,183.99,5.435]
[1739792254092,2.0,184.03,184.02,10.18828205]
[1739792254697,1.0,184.03,184.02,10.18828205]
[1739792255290,15.32465428,184.06,184.02,10.18828205]
[1739792255496,1.0,184.04,184.01,13.41184853]
[1739792255698,2.0,184.04,184.03,10.18828205]
[1739792256175,2.0,184.04,184.0,5.4347]
[1739792256369,2.0,184.04,184.03,10.18828205]
[1739792257070,2.0,184.04,184.02,10.18828205]
[1739792257680,1.0,184.05,184.03,10.18828205]
[1739792257879,1.0,184.05,184.04,10.18828205]
[1739792259197,2.0,184.05,184.04,10.18828205]
[1739792259498,1.0,184.04,184.03,10.18828205]
[1739792260097,2.0,184.04,184.03,10.18828205]
[1739792260301,1.0,184.05,184.03,10.18828205]
[1739792260484,1.0,184.05,184.04,10.18828205]
[1739792260810,15.32465428,184.06,184.04,10.18828205]
[1739792260977,15.32465428,184.06,184.05,10.18828205]
[1739792261303,1.0,184.05,184.04,10.18828205]
[1739792261478,2.0,184.05,184.03,10.18828205]
[1739792261679,1.0,184.04,184.03,10.18828205]
[1739792263104,2.0,184.05,184.03,10.18828205]
[1739792263397,2.0,184.05,184.04,10.18828205]
[1739792265600,1.0,184.05,184.04,10.18828205]
[1739792267108,15.32465428,184.06,184.04,15.62178205]
[1739792267403,15.32465428,184.06,184.05,10.18828205]
[1739792268703,15.32465428,184.06,184.05,15.62158205]
[1739792274617,0.063,184.06,184.04,5.4335]
[1739792274804,0.063,184.06,183.99,6.4344]
[1739792274805,1.0,184.03,183.99,6.4344]
[1739792274998,1.0,184.02,184.0,10.18828205]
[1739792275218,2.0,184.02,184.0,10.18828205]
[1739792276090,2.0,184.02,184.01,10.18828205]
[1739792278113,2.0,184.02,184.0,10.18828205]
[1739792278310,2.0,184.01,183.99,10.18828205]
[1739792278614,1.0,184.0,183.98,10.18828205]
[1739792278791,1.0,183.99,183.98,10.18828205]
[1739792279195,1.0,183.99,183.97,10.18828205]
[1739792279493,2.0,183.99,183.97,10.18828205]
[1739792280197,1.0,183.98,183.97,10.18828205]
[1739792282436,1.0,183.95,183.94,10.18828205]
[1739792282734,2.0,183.95,183.94,10.18828205]
[1739792283428,1.0,183.94,183.93,10.18828205]
[1739792285829,2.0,183.96,183.93,15.62508205]
[1739792286032,1.0,183.97,183.95,10.18828205]
[1739792286345,1.0,183.96,183.95,10.18828205]
[1739792286706,2.0,183.97,183.95,10.18828205]
[1739792287209,2.0,183.98,183.95,10.18828205]
[1739792287410,1.0,183.97,183.95,10.18828205]
[1739792288335,1.0,183.96,183.95,10.18828205]
[1739792288542,2.0,183.96,183.94,10.18828205]
[1739792290309,2.0,183.95,183.94,10.18828205]
[1739792290622,2.0,183.94,183.92,10.18828205]
[1739792292131,1.0,183.93,183.92,10.18828205]
[1739792293127,2.0,183.94,183.92,10.18828205]
[1739792294131,1.0,183.93,183.89,89.7104]
[1739792294328,1.0,183.93,183.92,10.18828205]
[1739792294736,2.0,183.94,183.92,10.18828205]
[1739792294922,1.0,183.93,183.92,10.18828205]
[1739792297640,1.0,183.95,183.92,10.18828205]
[1739792297841,1.0,183.95,183.94,10.18828205]
[1739792298047,1.0,183.96,183.94,10.18828205]
[1739792298252,1.0,183.96,183.95,10.18828205]
[1739792299350,2.0,183.97,183.95,10.18828205]
[1739792299517,1.0,183.96,183.95,10.18828205]
[1739792299842,0.063,183.98,183.95,10.18828205]
[1739792300137,0.063,183.98,183.97,10.18828205]
[1739792300350,1.0,183.96,183.93,5.4366]
[1739792300648,1.0,183.96,183.95,10.18828205]
[1739792300829,1.0,183.97,183.95,10.18828205]
[1739792301151,2.063,183.98,183.95,10.18828205]
[1739792301817,1.0,183.95,183.91,5.4374]
[1739792302351,1.0,183.93,183.92,10.18828205]
[1739792302651,2.0,183.93,183.91,10.18828205]
[1739792302941,1.063,183.98,183.92,1.628]
[1739792303144,1.063,183.98,183.97,10.18828205]
[1739792303954,0.063,183.98,183.97,15.62388205]
[1739792304529,1.063,183.98,183.97,15.62388205]
[1739792304749,1.063,183.98,183.97,10.18828205]
[1739792304943,1.0,183.97,183.96,10.18828205]
[1739792305130,1.0,183.96,183.95,10.18828205]
[1739792306152,1.0,183.93,183.92,10.18828205]
[1739792308449,1.0,183.93,183.92,15.62538205]
[1739792308663,1.0,183.93,183.91,10.18828205]
[1739792308963,1.0,183.92,183.91,10.18828205]
[1739792310754,2.0,183.92,183.91,10.18828205]
[1739792310961,2.0,183.92,183.9,10.18828205]
[1739792311260,5.4359,183.96,183.89,10.18828205]
[1739792311261,1.0,183.9,183.89,10.18828205]
[1739792315467,1.0,183.9,183.89,15.62628205]
[1739792315765,1.0,183.9,183.89,10.18828205]
[1739792316875,2.0,183.9,183.88,10.18828205]
[1739792317161,2.0,183.9,183.87,10.18828205]
[1739792317370,2.0,183.9,183.88,10.18828205]
[1739792319465,1.0,183.91,183.89,10.18828205]
[1739792319681,1.0,183.9,183.88,5.4383]
[1739792321364,1.0,183.9,183.86,5.4389]
[1739792321570,1.0,183.9,183.89,10.18828205]
[1739792321863,2.0,183.9,183.89,10.18828205]
[1739792322667,1.0,183.9,183.89,10.18828205]
[1739792322871,2.0,183.9,183.89,10.18828205]
[1739792323058,1.0,183.9,183.89,10.18828205]
[1739792324271,1.0,183.9,183.89,15.62628205]
[1739792324772,2.0,183.9,183.89,15.62628205]
[1739792325065,2.0,183.9,183.89,10.18828205]
[1739792328965,2.0,183.89,183.88,10.18828205]
[1739792329172,1.0,183.88,183.87,10.18828205]
[1739792330184,1.0,183.85,183.82,0.03]
[1739792330358,1.0,183.84,183.83,10.18828205]
[1739792330679,2.0,183.83,183.82,10.21828205]
[1739792332076,2.0,183.83,183.82,0.03]
[1739792332371,2.0,183.83,183.82,10.21828205]
[1739792333154,7.4398,183.83,183.82,0.03]
[1739792333559,7.69078,183.83,183.82,0.03]
[1739792335383,2.0,183.83,183.82,0.03]
[1739792339251,2.0,183.85,183.82,10.21828205]
[1739792339461,1.0,183.85,183.84,10.18828205]
[1739792339795,1.0,183.85,183.83,10.18828205]
[1739792340077,2.0,183.84,183.83,10.18828205]
[1739792340382,1.0,183.84,183.83,10.18828205]
[1739792340682,2.0,183.84,183.83,10.18828205]
[1739792340861,1.0,183.84,183.83,10.18828205]
[1739792341063,1.0,183.85,183.83,10.18828205]
[1739792341381,0.42591199,183.85,183.84,10.18828205]
[1739792341568,1.0,183.86,183.84,10.18828205]
[1739792341776,1.0,183.87,183.85,10.18828205]
[1739792342084,13.59290148,183.88,183.86,10.18828205]
[1739792342318,13.59290148,183.88,183.87,10.18828205]
[1739792342471,13.59290148,183.88,183.86,10.18828205]
[1739792342472,1.42591199,183.87,183.86,10.18828205]
[1739792342662,1.42591199,183.87,183.85,10.18828205]
[1739792342860,1.0,183.86,183.85,10.18828205]
[1739792343166,0.42591199,183.87,183.85,10.18828205]
[1739792343372,14.01881347,183.88,183.86,10.18828205]
[1739792343570,14.01881347,183.88,183.87,10.18828205]
[1739792343972,13.59290148,183.88,183.87,10.18828205]
[1739792346094,13.59290148,183.88,183.87,15.62688205]
[1739792346392,13.59290148,183.88,183.87,10.18828205]
[1739792346993,14.01881347,183.88,183.86,10.18828205]
[1739792347176,0.42591199,183.85,183.84,10.18828205]
[1739792347677,0.42591199,183.84,183.83,10.18828205]
[1739792348800,1.42591199,183.84,183.83,10.18828205]
[1739792349790,1.42591199,183.84,183.82,0.03]
[1739792349989,1.42591199,183.84,183.83,10.18828205]
[1739792350899,1.42591199,183.84,183.82,10.21828205]
[1739792351089,0.42591199,183.83,183.82,10.21828205]
[1739792351692,0.42591199,183.83,183.82,0.03]
[1739792351896,1.42591199,183.83,183.82,0.03]
[1739792352799,6.86571199,183.83,183.82,0.03]
[1739792353182,1.42591199,183.83,183.82,0.03]
[1739792355702,6.86571199,183.83,183.82,0.03]
[1739792357216,0.42591199,183.83,183.82,0.03]
[1739792357519,1.0,183.84,183.82,10.21828205]
[1739792357805,1.42591199,183.84,183.83,10.18828205]
[1739792357990,1.42591199,183.83,183.82,10.21828205]
[1739792358194,1.0,183.83,183.82,10.21828205]
[1739792358420,0.42591199,183.84,183.82,10.21828205]
[1739792358589,0.42591199,183.84,183.83,16.00002675]
[1739792358921,1.42591199,183.85,183.83,16.00002675]
[1739792359211,1.42591199,183.85,183.84,16.00002675]
[1739792359419,0.42591199,183.85,183.84,16.00002675]
[1739792362790,0.42591199,183.87,183.84,21.43952675]
[1739792363002,0.42591199,183.87,183.86,16.00002675]
[1739792363195,0.48891199,183.88,183.86,16.00002675]
[1739792363397,1.48891199,183.88,183.87,16.00002675]
[1739792364403,1.48891199,183.88,183.86,16.00002675]
[1739792364597,1.42591199,183.87,183.86,16.00002675]
[1739792364799,0.42591199,183.86,183.85,16.00002675]
[1739792365016,1.42591199,183.86,183.85,16.00002675]
[1739792365713,1.42591199,183.86,183.84,16.00002675]
[1739792366013,0.42591199,183.85,183.83,16.00002675]
[1739792366202,0.42591199,183.85,183.84,16.00002675]
[1739792367019,1.48891199,183.86,183.84,16.00002675]
[1739792367329,1.48891199,183.86,183.85,16.00002675]
[1739792369717,1.063,183.86,183.85,16.00002675]
[1739792369923,1.063,183.86,183.85,21.43922675]
[1739792370491,0.063,183.86,183.85,21.43922675]
[1739792371297,0.48891199,183.86,183.83,5.4395]
[1739792371617,0.42591199,183.85,183.84,16.00002675]
[1739792372703,0.063,183.86,183.84,16.00002675]
[1739792372908,0.063,183.86,183.85,16.00002675]
[1739792374323,0.48891199,183.86,183.85,16.00002675]
[1739792374527,0.48891199,183.86,183.85,21.43922675]
[1739792375523,0.48891199,183.86,183.85,16.00002675]
[1739792376110,0.063,183.86,183.85,16.00002675]
[1739792376517,0.48891199,183.86,183.85,16.00002675]
[1739792377123,1.48891199,183.86,183.85,16.00002675]
[1739792377339,0.48891199,183.86,183.85,16.00002675]
[1739792378633,0.48891199,183.86,183.85,10.23710201]
[1739792379331,0.063,183.86,183.85,10.23710201]
[1739792379717,0.063,183.86,183.85,15.67630201]
[1739792391759,0.063,183.86,183.85,10.23710201]
[1739792391936,0.48891199,183.86,183.85,10.23710201]
[1739792393157,0.48891199,183.86,183.84,0.03]
[1739792393351,0.48891199,183.86,183.85,10.23710201]
[1739792394155,0.063,183.86,183.85,15.67630201]
[1739792397149,0.063,183.86,183.85,10.23710201]
[1739792397534,0.063,183.86,183.85,15.67630201]
[1739792398862,0.48891199,183.86,183.85,15.67630201]
[1739792399239,0.063,183.86,183.85,15.67630201]
[1739792401282,0.48891199,183.86,183.85,15.67630201]
[1739792401436,0.063,183.86,183.85,15.67630201]
[1739792402475,0.063,183.86,183.85,15.70630201]
[1739792404951,0.063,183.86,183.85,0.03]
[1739792404952,0.48891199,183.86,183.85,0.03]
[1739792407268,0.48891199,183.86,183.85,10.26710201]
[1739792409051,0.063,183.86,183.85,10.26710201]
[1739792409402,0.063,183.86,183.85,15.70630201]
[1739792415777,0.063,183.86,183.85,29.11815054]
[1739792415957,0.063,183.86,183.85,110.61815054]
[1739792417562,0.063,183.88,183.87,51.18551005]
[1739792418257,0.063,183.88,183.87,146.09735858]
[1739792418888,0.063,183.88,183.87,151.53595858]
[1739792419371,0.063,183.9,183.88,13.41184853]
[1739792419575,0.063,183.9,183.89,11.05241391]
[1739792420661,0.063,183.9,183.89,24.46426244]
[1739792421086,0.063,183.9,183.89,29.90226244]
[1739792421485,0.063,183.9,183.89,30.47635045]
[1739792421789,0.063,183.9,183.89,32.9633103]
[1739792422295,0.063,183.93,183.9,13.98593654]
[1739792422586,0.063,183.93,183.92,10.23710201]
[1739792422786,0.063,183.93,183.92,105.14895054]
[1739792422971,0.063,183.93,183.92,110.58605054]
[1739792427673,0.063,183.93,183.92,110.96252054]
[1739792427973,0.063,183.93,183.92,110.58605054]
[1739792428985,0.063,183.93,183.92,111.16013855]
[1739792431488,0.063,183.98,183.93,13.41184853]
[1739792431694,0.063,183.98,183.97,10.23710201]
[1739792431895,0.063,183.98,183.97,91.73710201]
[1739792433902,1.063,183.98,183.97,91.73710201]
[1739792434587,1.48891199,183.98,183.97,81.5]
[1739792436170,1.48891199,183.98,183.95,10.23710201]
[1739792437416,0.063,183.98,183.97,10.23710201]
[1739792438894,0.063,183.98,183.97,91.73710201]
[1739792439598,0.063,183.98,183.97,97.17270201]
[1739792439776,0.063,183.98,183.97,110.58455054]
[1739792440294,0.063,183.98,183.97,97.17270201]
[1739792441285,0.063,183.98,183.97,110.58455054]
[1739792442288,0.063,183.98,183.97,111.28412855]
[1739792442491,0.0001,183.98,183.97,111.53510855]
[1739792443200,0.063,184.04,183.99,0.57408801]
[1739792443409,0.063,184.04,184.03,10.23710201]
[1739792443895,0.063,184.04,184.03,29.08275054]
[1739792450587,0.063,184.04,184.03,10.23710201]
[1739792450815,0.063,184.04,184.02,10.23710201]
[1739792450999,1.48891199,184.04,184.01,91.73710201]
[1739792451316,1.063,184.04,184.02,10.23710201]
[1739792451506,1.063,184.04,184.03,10.23710201]
[1739792451507,0.063,184.04,184.03,10.23710201]
[1739792452621,0.063,184.04,184.03,15.67090201]
[1739792454810,0.063,184.04,184.03,10.23710201]
[1739792456809,1.063,184.04,184.02,10.23710201]
[1739792458619,1.063,184.04,184.03,10.23710201]
[1739792458800,0.063,184.04,184.03,10.23710201]
[1739792460719,0.063,184.04,184.03,15.67090201]
[1739792461402,1.063,184.04,184.03,10.23710201]
[1739792461810,0.063,184.04,184.03,10.23710201]
[1739792462316,0.063,184.04,184.03,15.67090201]
[1739792462523,0.063,184.04,184.03,10.23710201]
[1739792463100,0.063,184.04,184.03,91.73710201]
[1739792465109,0.063,184.04,184.03,97.17090201]
[1739792465722,0.063,184.04,184.03,97.98566675]
[1739792465925,0.063,184.04,184.03,111.39751528]
[1739792466115,0.063,184.04,184.03,110.58275054]
[1739792468725,0.063,184.04,184.03,151.53115858]
[1739792469326,0.063,184.04,184.03,110.58275054]
[1739792473156,0.0001,184.04,184.03,151.53115858]
[1739792473754,0.0001,184.04,184.03,110.58275054]
[1739792474042,0.0001,184.05,184.04,13.41184853]
[1739792474240,0.0001,184.05,184.04,65.41192883]
[1739792474551,0.0001,184.05,184.04,66.36248684]
[1739792474923,0.0001,184.06,184.05,14.36240654]
[1739792475127,0.0001,184.06,184.05,65.54791659]
[1739792475737,0.0001,184.07,184.05,65.54791659]
[1739792475963,0.0001,184.07,184.06,24.46344172]
[1739792476170,0.0001,184.07,184.06,30.84699973]
[1739792476456,0.063,184.09,184.08,13.41184853]
[1739792476626,0.063,184.09,184.08,105.96336318]
[1739792476828,0.063,184.12,184.08,106.91392119]
[1739792477166,0.063,184.12,184.11,43.64895054]
[1739792477331,0.063,184.12,184.11,30.23710201]
[1739792478243,0.063,184.12,184.11,35.66860201]
[1739792479838,0.063,184.12,184.11,30.23710201]
[1739792480044,0.063,184.12,184.1,10.23710201]
[1739792480431,0.42591199,184.11,184.08,91.73710201]
[1739792481846,0.063,184.12,184.1,10.23710201]
[1739792482156,0.063,184.12,184.11,10.23710201]
[1739792482952,0.063,184.12,184.11,15.66860201]
[1739792483334,0.063,184.12,184.11,35.66860201]
[1739792484147,0.063,184.12,184.11,49.89485286]
[1739792484832,0.063,184.13,184.12,13.41184853]
[1739792485051,0.063,184.13,184.12,105.14895054]
[1739792486454,0.063,184.13,184.12,110.58015054]
[1739792488266,0.063,184.16,184.15,33.41184853]
[1739792488435,0.063,184.16,184.15,43.64895054]
[1739792488755,0.063,184.17,184.16,13.41184853]
[1739792488947,0.0001,184.17,184.16,106.09950855]
[1739792489536,0.0001,184.17,184.16,105.52542054]
[1739792489950,0.0001,184.17,184.16,106.09950855]
[1739792490143,0.0001,184.17,184.16,111.52950855]
[1739792493259,0.0001,184.17,184.16,110.57895054]
[1739792495564,0.0001,184.17,184.16,110.64195054]
[1739792497846,0.0001,184.17,184.16,91.80010201]
[1739792499462,0.0001,184.17,184.16,97.23010201]
[1739792500946,0.0001,184.17,184.16,110.64195054]
[1739792505247,0.0001,184.17,184.16,97.23010201]
[1739792505468,0.0001,184.17,184.16,81.563]
[1739792505981,0.0001,184.17,184.16,86.993]
[1739792506179,0.0001,184.17,184.16,97.23010201]
[1739792507847,0.0001,184.17,184.16,91.80010201]
[1739792508052,0.0001,184.17,184.16,97.23010201]
[1739792510385,0.0001,184.17,184.16,110.64195054]
[1739792511266,0.0001,184.17,184.16,110.89293054]
[1739792514874,0.0001,184.17,184.16,111.01842054]
[1739792516076,0.0001,184.17,184.16,110.89293054]
[1739792517185,0.0001,184.17,184.16,111.01842054]
[1739792518560,0.0001,184.17,184.16,111.59250855]
[1739792520687,0.0001,184.17,184.16,111.01842054]
[1739792522299,0.0001,184.17,184.16,111.59250855]
[1739792524379,0.0001,184.17,184.16,110.89293054]
[1739792527869,0.0001,184.17,184.16,111.01842054]
[1739792528073,0.0001,184.17,184.16,111.59250855]
[1739792532701,0.0001,184.17,184.16,111.01842054]
[1739792532874,0.0001,184.17,184.16,111.59250855]
[1739792534700,0.0001,184.17,184.16,111.01842054]
[1739792535281,0.0001,184.17,184.16,111.59250855]
[1739792546994,0.0001,184.17,184.16,111.01842054]
[1739792547698,0.0001,184.17,184.16,111.59250855]
[1739792548514,0.0001,184.17,184.16,111.01842054]
[1739792548687,0.0001,184.17,184.16,111.59250855]
[1739792551528,0.0001,184.17,184.16,111.01842054]
[1739792552809,0.0001,184.17,184.16,110.76744054]
[1739792561729,0.42601199,184.17,184.16,81.563]
[1739792563032,0.42601199,184.17,184.16,86.993]
[1739792565324,0.42601199,184.17,184.16,81.563]
[1739792571842,0.42601199,184.17,184.16,86.993]
[1739792572545,0.0001,184.17,184.16,86.993]
[1739792572856,0.42601199,184.17,184.16,86.993]
[1739792574622,0.0001,184.17,184.16,86.993]
[1739792575065,0.42601199,184.17,184.16,86.993]
[1739792575551,0.0001,184.17,184.16,86.993]
[1739792575847,0.0001,184.17,184.16,110.64195054]
[1739792576030,0.0001,184.17,184.16,110.76744054]
[1739792576850,0.0001,184.17,184.16,100.53033853]
[1739792577349,0.0001,184.17,184.16,86.993]
[1739792577350,0.42601199,184.17,184.16,86.993]
[1739792578422,0.42601199,184.17,184.16,81.563]
[1739792578854,0.42601199,184.17,184.16,86.993]
[1739792579554,0.42601199,184.17,184.16,81.563]
[1739792579927,0.42601199,184.17,184.16,86.993]
[1739792580126,0.0001,184.17,184.16,86.993]
[1739792580335,0.42601199,184.17,184.16,86.993]
[1739792580548,0.0001,184.17,184.16,86.993]
[1739792581134,0.42601199,184.17,184.16,86.993]
[1739792581339,0.0001,184.17,184.16,86.993]
[1739792582455,0.0001,184.17,184.16,100.40484853]
[1739792583357,0.0001,184.17,184.16,100.53033853]
[1739792584162,0.0001,184.17,184.16,110.76744054]
[1739792584662,0.0001,184.17,184.16,100.53033853]
[1739792585765,0.0001,184.17,184.16,110.76744054]
[1739792586338,0.0001,184.17,184.16,100.53033853]
[1739792588764,0.0001,184.17,184.16,100.65582853]
[1739792590574,0.0001,184.17,184.16,110.89293054]
[1739792598574,0.0001,184.17,184.16,100.65582853]
[1739792599977,0.42601199,184.17,184.16,100.40484853]
[1739792600174,0.42601199,184.17,184.16,81.563]
[1739792600477,0.42601199,184.17,184.16,86.993]
[1739792601080,0.42601199,184.17,184.16,81.563]
[1739792602753,0.42601199,184.17,184.16,86.993]
[1739792604479,1.42601199,184.17,184.16,81.563]
[1739792606086,1.42601199,184.17,184.16,86.993]
[1739792608184,0.42601199,184.17,184.16,86.993]
[1739792608590,1.42601199,184.17,184.16,86.993]
[1739792610187,0.42601199,184.17,184.16,86.993]
[1739792611584,0.0001,184.17,184.16,110.89293054]
[1739792614280,1.0001,184.17,184.16,110.89293054]
[1739792614587,0.0001,184.17,184.16,110.89293054]
[1739792617890,1.0001,184.17,184.16,110.89293054]
[1739792621688,0.0001,184.17,184.16,110.89293054]
[1739792621881,1.42601199,184.17,184.16,110.64195054]
[1739792623193,1.0001,184.17,184.16,110.64195054]
[1739792623394,0.0001,184.17,184.16,110.64195054]
[1739792623989,0.0001,184.17,184.16,110.89293054]
[1739792624382,0.0001,184.17,184.16,110.64195054]
[1739792624587,0.0001,184.17,184.16,100.40484853]
[1739792624588,1.42601199,184.17,184.16,100.40484853]
[1739792627884,1.42601199,184.17,184.16,110.64195054]
[1739792629305,1.42601199,184.17,184.16,100.40484853]
[1739792629593,1.42601199,184.17,184.16,81.563]
[1739792631092,11.663114,184.17,184.16,0.063]
[1739792631292,13.285314,184.17,184.16,0.063]
[1739792631503,18.715014,184.17,184.16,0.063]
[1739792631702,13.285314,184.17,184.16,0.063]
[1739792634706,3.04821199,184.17,184.16,0.063]
[1739792637308,1.42601199,184.17,184.16,0.063]
[1739792638102,11.663114,184.17,184.16,0.063]
[1739792640691,17.092814,184.17,184.16,0.063]
[1739792641097,11.663114,184.17,184.16,0.063]
[1739792641302,1.42601199,184.17,184.16,0.063]
[1739792650612,17.092814,184.17,184.16,0.063]
[1739792662500,11.663114,184.17,184.16,0.063]
[1739792666126,1.42601199,184.17,184.16,0.063]
[1739792669947,1.42601199,184.17,184.16,81.563]
[1739792670238,1.42601199,184.17,184.16,105.21195054]
[1739792670239,0.42601199,184.17,184.16,105.21195054]
[1739792670539,1.0001,184.17,184.16,105.21195054]
[1739792671138,1.0001,184.17,184.16,110.64195054]
[1739792672034,0.0001,184.17,184.16,110.89293054]
[1739792672219,0.0001,184.17,184.16,117.13603054]
[1739792673830,0.0001,184.17,184.16,117.26152054]
[1739792675535,0.0001,184.17,184.16,117.83560855]
[1739792678039,0.0001,184.17,184.16,117.26152054]
[1739792681124,0.0001,184.17,184.16,117.13603054]
[1739792682840,0.0001,184.17,184.16,117.26152054]
[1739792684229,0.0001,184.17,184.16,117.83560855]
[1739792690538,0.0001,184.17,184.16,117.26152054]
[1739792690739,0.0001,184.17,184.16,117.83560855]
[1739792692551,0.063,184.23,184.22,0.25098]
[1739792692731,0.063,184.23,184.22,91.98808201]
[1739792693248,1.063,184.23,184.22,91.98808201]
[1739792693432,1.48891199,184.23,184.22,97.41628201]
[1739792694654,1.063,184.23,184.22,97.41628201]
[1739792694954,0.063,184.23,184.22,97.41628201]
[1739792695150,0.48891199,184.23,184.22,97.41628201]
[1739792695340,1.48891199,184.23,184.22,97.41628201]
[1739792695754,0.063,184.23,184.22,97.41628201]
[1739792696141,1.48891199,184.23,184.22,97.41628201]
[1739792696342,1.063,184.23,184.22,97.41628201]
[1739792696549,1.48891199,184.23,184.22,97.41628201]
[1739792697152,1.48891199,184.23,184.22,81.5]
[1739792698931,1.48891199,184.23,184.22,100.34004853]
[1739792701442,1.48891199,184.23,184.22,94.91184853]
[1739792701641,1.48891199,184.23,184.22,81.5]
[1739792701839,1.48891199,184.23,184.22,86.9282]
[1739792702266,1.48891199,184.23,184.22,100.34004853]
[1739792706060,1.48891199,184.23,184.22,81.5]
[1739792708564,1.48891199,184.23,184.22,86.9282]
[1739792710846,1.48891199,184.23,184.22,81.5]
[1739792711251,1.48891199,184.23,184.22,86.9282]
[1739792711955,1.48891199,184.23,184.22,81.5]
[1739792712157,1.48891199,184.23,184.22,86.9282]
[1739792713373,1.48891199,184.23,184.22,81.5]
[1739792715466,1.48891199,184.23,184.22,86.9282]
[1739792716175,1.48891199,184.23,184.22,100.34004853]
[1739792716351,1.063,184.23,184.22,110.82813054]
[1739792716552,0.063,184.23,184.22,110.82813054]
[1739792718358,0.0001,184.23,184.22,110.95362054]
[1739792718877,0.0001,184.23,184.22,113.22585833]
[1739792719959,0.0001,184.23,184.22,110.95362054]
[1739792738703,0.0001,184.26,184.25,33.78831853]
[1739792738904,0.0001,184.3,184.29,13.78831853]
[1739792739085,0.0001,184.32,184.31,0.25098]
[1739792739279,0.0001,184.32,184.31,24.71338436]
[1739792739800,0.0001,184.32,184.31,30.13898436]
[1739792740176,0.0001,184.32,184.31,152.7128824]
[1739792740383,0.0001,184.32,184.31,151.89942858]
[1739792740675,0.0001,184.32,184.31,152.47351659]
[1739792743185,0.063,184.34,184.33,0.37647]
[1739792743504,0.03,184.36,184.35,33.66282853]
[1739792743682,0.03,184.36,184.35,44.71319052]
[1739792744101,0.03,184.36,184.35,43.89993054]
[1739792745195,0.03,184.36,184.35,49.32433054]
[1739792748110,1.0,184.4,184.39,20.25098]
[1739792748298,1.0,184.4,184.39,125.39993054]
[1739792748502,1.0,184.41,184.4,0.25098]
[1739792748706,0.03,184.42,184.41,0.12549]
[1739792748895,0.03,184.42,184.41,65.78691894]
[1739792750403,15.65630201,184.53,184.41,65.78691894]
[1739792750404,1.0,184.51,184.49,20.0]
[1739792750595,1.42591199,184.51,184.5,29.31993054]
[1739792751487,1.0,184.51,184.5,29.31993054]
[1739792751689,5.50591199,184.51,184.5,29.31993054]
[1739792751912,1.42591199,184.51,184.5,29.31993054]
[1739792752510,1.0,184.51,184.5,29.31993054]
[1739792752808,0.42591199,184.52,184.51,13.41184853]
[1739792752809,1.42591199,184.52,184.51,13.41184853]
[1739792754910,1.42591199,184.5,184.49,91.73710201]
[1739792756216,1.42591199,184.5,184.49,105.39993054]
[1739792756517,1.42591199,184.5,184.49,94.91184853]
[1739792757313,1.42591199,184.48,184.47,10.23710201]
[1739792757628,1.42591199,184.46,184.45,10.23710201]
[1739792757936,1.42591199,184.46,184.45,43.89993054]
[1739792758432,1.0,184.46,184.45,49.32143054]
[1739792759217,1.42591199,184.46,184.45,20.0]
[1739792759533,0.42591199,184.43,184.41,10.23710201]
[1739792759832,0.42591199,184.43,184.39,5.4232]